Cogmind - Beta 10.1 @@@ ROGUE MODE // 2020.10.29 @ 04:02:40 Player: WayneKnight Result: Destroyed by as-00842 with Assembled F-torch Performance ------------- Evolutions (0) 0 Regions Visited (2) 400 Robots Destroyed (29) 145 Value Destroyed (620) 620 Prototype IDs (2) 40 Alien Tech Used (0) 0 Bonus (0) 0 TOTAL SCORE: 1205 Bonus ------- None Cogmind --------- Core Integrity 0/250 Matter 299/300 Energy 116/125 System Corruption 4% Temperature Cool (40) Movement Walking (150) Ox1 Location -10/Mines Parts ------- > --- POWER (1) -------- Light Ion Engine > --- PROPULSION (2) --- Aluminum Leg Aluminum Leg > --- UTILITY (2) ------ Large Storage Unit Large Storage Unit > --- WEAPON (2) ------- Small Laser Light Assault Rifle > --- INVENTORY (16) --- Light Ion Engine Aluminum Leg Aluminum Leg Wheel Wheel Medium Storage Unit Large Storage Unit Sensor Array Signal Interpreter Light Assault Rifle Peak State ------------ > --- POWER ------------ Ion Engine > --- PROPULSION ------- Light Treads Light Treads > --- UTILITY ---------- Small Storage Unit Large Storage Unit > --- WEAPON ----------- Medium Laser Light Assault Rifle > --- INVENTORY -------- Light Ion Engine Light Ion Engine Light Ion Engine Aluminum Leg Aluminum Leg Wheel Compact Wheel Small Storage Unit Medium Laser Small Laser [Rating: 8] Favorites ----------- Power Ion Engine Engine Ion Engine Propulsion Light Treads Treads Light Treads Leg Aluminum Leg Wheel Wheel Utility Large Storage Unit Storage Large Storage Unit Weapon Light Assault Rifle Energy Gun Medium Laser Ballistic Gun Light Assault Rifle Build | -11 -10 -10 ------- Run | Scr Mat Min Slots Evolved . | . . . Power . | . . . Propulsion . | . . . Utility . | . . . Weapon . | . . . Parts Attached 38 | 3 15 20 Power 3 | . 1 2 Engine 3 | . 1 2 Core . | . . . Reactor . | . . . Propulsion 18 | 2 7 9 Treads 6 | 1 4 1 Leg 6 | . . 6 Wheel 6 | 1 3 2 Hover . | . . . Flight . | . . . Utility 5 | 1 4 . Device . | . . . Storage 5 | 1 4 . Processor . | . . . Hackware . | . . . Protection . | . . . Artifact . | . . . Weapon 12 | . 3 9 Energy Gun 5 | . 1 4 Energy Cannon . | . . . Ballistic Gun 7 | . 2 5 Ballistic Cannon . | . . . Launcher . | . . . Special Weapon . | . . . Impact Weapon . | . . . Slashing Weapon . | . . . Piercing Weapon . | . . . Special Melee Weapon . | . . . Unidentified Prototypes . | . . . Parts Lost 11 | . 1 10 Power 2 | . . 2 Propulsion 2 | . . 2 Utility . | . . . Weapon 7 | . 1 6 Highest Loss Streak 5 | . 1 5 Average Slot Usage (%) 99 | . 100 98 Engine 13 | . 14 13 Treads 18 | . 22 11 Leg 3 | . . 11 Wheel 5 | . 5 4 Storage 28 | . 28 28 Energy Gun 2 | . 1 4 Ballistic Gun 24 | . 26 22 Naked Turns . | . . . Heaviest Build 40 | 14 40 40 Greatest Support 40 | 20 40 40 Greatest Overweight (x) 3 | 1 3 3 Average Overweight (x) 1 | . 1 2 Largest Inventory Capacity 16 | 8 16 16 Average Capacity 14 | 6 13 16 Most Carried 16 | 7 15 16 Average Carried 13 | 6 13 13 Final Capacity 16 | 8 16 16 Final Carried 15 | 7 15 10 Class Distribution -------------------- 98% | Mutant Dominant Class ---------------- Mutant | -10/Materials Mutant | -10/Mines Resources | -11 -10 -10 ----------- Run | Scr Mat Min Matter Collected 808 | 233 217 358 Remotely . | . . . Salvage Created 917 | 90 550 277 Parts 42 | 4 27 11 Haulers Intercepted . | . . . Recyclers Shooed . | . . . Parts Field Recycled . | . . . Retrieved Matter . | . . . Parts Self-Destructed . | . . . Prevented . | . . . Kills | -11 -10 -10 ------- Run | Scr Mat Min Combat Hostiles Destroyed 25 | . 11 14 Guns 25 | . 11 14 Classes Destroyed 8 | 1 4 3 Builder 1 | . 1 . Recycler 1 | 1 . . Operator 1 | . 1 . Watcher 1 | . 1 . Swarmer 3 | . . 3 Grunt 13 | . 11 2 Demolisher 1 | . . 1 Assembled 8 | . . 8 Best Kill Streak 5 | 1 5 3 Combat Bots Only 5 | . 5 3 Max Kills in Single Turn 1 | 1 1 1 Gunslinging . | . . . Exploded . | . . . Melee . | . . . Uniques/NPCs Destroyed . | . . . Combat | -11 -10 -10 -------- Run | Scr Mat Min Damage Taken 1664 | . 415 1249 Core 257 | . 37 220 Absorbed by Shields . | . . . Core Remaining (%) 100 | 100 . . Volleys Fired 116 | 3 57 56 Largest 2 | 2 2 2 Hottest 90 | 70 70 90 Shots Fired 227 | 6 114 107 Gun 227 | 6 114 107 Cannon . | . . . Launcher . | . . . Special . | . . . Kinetic 168 | 3 89 76 Thermal 38 | 3 25 10 Explosive . | . . . Electromagnetic 21 | . . 21 Robot Hit Streak 16 | 1 16 12 Robot Miss Streak 4 | 4 4 4 Penetration Max . | . . . Secondary Targets 5 | . . 5 Max Gunslinging Chain 1 | . . 1 Shots Hit Robots 144 | 1 78 65 Core Hits 65 | 2 31 32 Critical Hits . | . . . Critical Kills . | . . . Critical Parts Destroyed . | . . . Melee Attacks . | . . . Impact . | . . . Slashing . | . . . Piercing . | . . . Sneak Attacks . | . . . Combat Hostiles . | . . . Follow-up Attacks . | . . . Damage Inflicted 1586 | 50 895 641 Guns 1566 | 50 876 640 Cannons . | . . . Explosions . | . . . Melee . | . . . Ramming 20 | . 19 1 Kinetic 1070 | 26 612 432 Thermal 355 | 24 264 67 Explosive . | . . . Electromagnetic 141 | . . 141 Impact . | . . . Slashing . | . . . Piercing . | . . . Highest Corruption 4 | . 1 4 Average Corruption 1 | . 1 1 Corruption Purged . | . . . Effects 12 | . 8 4 Message Errors 2 | . 2 . Matter Fused 1 | . . 1 Energy Discharges 4 | . 3 1 Data Loss (minor) 2 | . 1 1 Targeting Errors 3 | . 2 1 Overload Shots . | . . . Overflow Damage . | . . . Projectiles . | . . . Explosions . | . . . Melee . | . . . Knockbacks . | . . . Impact . | . . . Kinetic . | . . . Secondary . | . . . Self-Inflicted Damage . | . . . Shots . | . . . Rammed 6 | 1 4 1 Targets Rammed 6 | 1 4 1 Kicked . | . . . Crushed . | . . . Highest Temperature 291 | 40 291 40 Average Temperature 67 | 19 91 18 Received Heat Transfer 401 | . 231 170 Siege Activations . | . . . Robots Corrupted . | . . . Combat Hostiles . | . . . Parts Fried . | . . . Impact Corruptions . | . . . Robots Melted . | . . . Combat Hostiles . | . . . Parts Melted . | . . . Heat Transferred 1001 | 74 777 150 Parts Sabotaged . | . . . Parts Stolen . | . . . Parts Stripped . | . . . Power Chain Reactions . | . . . Missiles Intercepted . | . . . Alert | -11 -10 -10 ------- Run | Scr Mat Min Peak Influence 244 | 5 244 123 Initial 8 | . 3 8 Average 37 | 2 38 38 Maximum Alert Level 1 | . 1 . Low Security (%) 97 | 100 96 100 Level 1 2 | . 3 . Level 2 . | . . . Level 3 . | . . . Level 4 . | . . . Level 5 . | . . . High Security . | . . . Max Security . | . . . Squads Dispatched 3 | . 3 . Investigation 2 | . 2 . Extermination . | . . . Reinforcement 1 | . 1 . Assault . | . . . Garrison . | . . . Intercept . | . . . Construction Impeded . | . . . Haulers Reinforced . | . . . Stealth | -11 -10 -10 --------- Run | Scr Mat Min Distress Signals 1 | . 1 . Communications Jammed . | . . . Distress Signals . | . . . Times Spotted 47 | . 24 23 Peak Tracking Total 5 | . 5 5 Tactical Retreats 1 | . 1 . Traps | -11 -10 -10 ------- Run | Scr Mat Min Traps Triggered 3 | . 3 . Indirectly . | . . . Trap Hack Attempts . | . . . Triggered . | . . . Disarmed . | . . . Reprogrammed . | . . . Reused . | . . . Traps Extracted . | . . . Installed . | . . . Triggered . | . . . Machines | -11 -10 -10 ---------- Run | Scr Mat Min Machines Disabled . | . . . Max in Single Turn . | . . . Machines Sabotaged . | . . . Garrisons Compromised . | . . . Overloaded Fab Kills . | . . . Fab Network Shutdowns . | . . . Hacking | -11 -10 -10 --------- Run | Scr Mat Min Machines Accessed 9 | . 9 . Terminals 7 | . 7 . Fabricators . | . . . Repair Stations 1 | . 1 . Recycling Units 1 | . 1 . Scanalyzers . | . . . Garrison Access . | . . . Total Hacks 31 | . 31 . Successful 19 | . 19 . Failed 12 | . 12 . Catastrophic 1 | . 1 . Database Lockouts . | . . . Manual 15 | . 15 . Terminals 26 | . 26 . Fabricators . | . . . Repair Stations 3 | . 3 . Recycling Units 2 | . 2 . Scanalyzers . | . . . Garrison Access . | . . . Terminal Hacks 9 | . 9 . Part Schematic 1 | . 1 . Robot Analysis 3 | . 3 . Prototype ID Bank 1 | . 1 . Locate Traps 3 | . 3 . Hauler Manifests 1 | . 1 . Fabricator Hacks . | . . . Repair Station Hacks 2 | . 2 . Scan Component 1 | . 1 . Repair 1 | . 1 . Recycling Unit Hacks 2 | . 2 . Report Inventory 1 | . 1 . Retrieve Components 1 | . 1 . Scanalyzer . | . . . Garrison Access Hacks . | . . . Unauthorized Hacks 6 | . 6 . Terminals 6 | . 6 . Assimilate 1 | . 1 . Botnet 4 | . 4 . Operators 1 | . 1 . Fabricators . | . . . Repair Stations . | . . . Recycling Units . | . . . Scanalyzers . | . . . Garrison Access . | . . . Data Cores Recovered . | . . . Used . | . . . Hacking Detections 8 | . 8 . Full Trace Events . | . . . Feedback Events . | . . . Feedback Blocked . | . . . Robot Schematics Acquired . | . . . Robots Built . | . . . Matter . | . . . Time . | . . . Total Robot Build Rating . | . . . Part Schematics Acquired 1 | . 1 . Parts Built . | . . . Matter . | . . . Time . | . . . Total Part Build Rating . | . . . Parts Repaired 1 | . 1 . Time 26 | . 26 . Parts Recycled . | . . . Recycled Matter . | . . . Retrieved Matter . | . . . Retrieved Components 6 | . 6 . Parts Scanalyzed . | . . . Part Schematics Acquired . | . . . Parts Damaged . | . . . Bothacking | -11 -10 -10 ------------ Run | Scr Mat Min Used RIF Installer . | . . . Robots Hacked . | . . . Non-combat . | . . . Combat . | . . . Robot Hacks Applied . | . . . Relay Couplers Released . | . . . Robots Rewired . | . . . Allies Hacked . | . . . Hacks Repelled . | . . . Allies | -11 -10 -10 -------- Run | Scr Mat Min Total Allies 1 | . 1 . Largest Group 1 | . 1 . Highest-Rated Group 10 | . 10 . Highest-Rated Ally 10 | . 10 . Total Orders . | . . . Ally Attacks . | . . . Total Damage . | . . . Kills . | . . . Allies Corrupted . | . . . Allies Melted . | . . . Intel | -11 -10 -10 ------- Run | Scr Mat Min Robot Analysis Total 3 | . 3 . Derelict Logs Recovered 2 | . . 2 Drone Launches . | . . . Drone Recoveries . | . . . Exploration | -11 -10 -10 ------------- Run | Scr Mat Min Turns Passed 3707 | 55 2496 1156 Spaces Moved 1476 | 39 823 614 Core . | . . . Treads 340 | . 261 79 Legs 201 | 18 . 183 Wheels 935 | 21 562 352 Hover . | . . . Flight . | . . . Fastest Speed 90 | 90 90 110 Average Speed 126 | 103 124 130 Slowest Speed 210 | 120 180 210 Overloaded Moves . | . . . Propulsion Burnouts . | . . . Robots Hopped . | . . . Cave-ins Triggered . | . . . Exploration Rate (%) 66 | 4 99 95 Regions Visited 2 Branch Regions 1 Pre-discovered Areas 3 | . . 3 Known Exits Taken . | . . . Unknown Exits Taken 2 | 1 1 . Scrap Searched 1 | . . 1 Spaces Dug . | . . . Terrain Destroyed . | . . . Melee . | . . . Projectile . | . . . AOE . | . . . Terrain Rammed . | . . . Walls Destroyed . | . . . Machines Disabled . | . . . Actions | -11 -10 -10 --------- Run | Scr Mat Min Total 3104 | 47 2191 866 Wait 1451 | . 1277 174 Move 1474 | 38 822 614 Hop . | . . . Pick Up 11 | 1 9 1 Fast Attach 4 | 1 1 2 Attach 12 | 1 1 10 Detach 2 | 1 1 . Swap 22 | 1 13 8 Drop 6 | . 6 . Fire 116 | 3 57 56 Melee . | . . . Ram 2 | 1 . 1 Kick . | . . . Crush 4 | . 4 . Escape Stasis . | . . . Rewire . | . . . Trap . | . . . Miscellaneous . | . . . Route ------- -11/Scrapyard -10/Materials (discovered 4 exits: [*Mat x3] / [*Min]) -10/Mines (discovered 3 exits: [*Mat x2] / [*Exi]) History --------- Turn | Location | Event 1 | -11/Scrapyard | Discovered new exit (range 1) 56 | -11/Scrapyard | Entered Materials 305 | -10/Materials | Build established: Mutant 392 | -10/Materials | Discovered new exit (range 10) 534 | -10/Materials | Discovered new exit (range 5) 751 | -10/Materials | Repaired Lgt. Treads 854 | -10/Materials | Discovered new exit (range 4) 977 | -10/Materials | Discovered new exit (range 15) 2552 | -10/Materials | Entered Mines 2829 | -10/Mines | Discovered new exit (range 11) 3136 | -10/Mines | Learned location of Storage (-8) 3157 | -10/Mines | Learned location of Mines (-9) 3167 | -10/Mines | Deemed a non-threat by the Exiles lab entrance 3167 | -10/Mines | Discovered new exit (range 5) 3270 | -10/Mines | Assembled infested the area 3275 | -10/Mines | Assisted by a Guerilla fighting off Assembled 3301 | -10/Mines | Core integrity fell below 50% 3340 | -10/Mines | Lost 5 parts (1p1n3w) 3340 | -10/Mines | Discovered new exit (range 12) 3353 | -10/Mines | Learned location of Zion (-7) 3599 | -10/Mines | Core integrity fell below 20% 3634 | -10/Mines | Lost 3 parts (3w) 3708 | -10/Mines | Destroyed by as-00842 with Assembled F-torch Last Messages --------------- 03606_ Lgt. Assault Rifle severed. 03608_ as-01679 destroyed. 03612_ Acquired Lgt. Assault Rifle. 03616_ Acquired Aluminum Leg. 03618_ Acquired 16 matter. 03622_ K-01 Serf collects debris. 03622_ Acquired 1 matter. 03626_ K-01 Serf collects debris. 03637_ Acquired 50 matter. 03639_ K-01 Serf collects debris. 03673_ Acquired 10 matter. 03675_ K-01 Serf collects debris. 03700_ as-74551 sneak attacks. 03700_ U-05 Engineer system corrupted by crushing effect. 03700_ U-05 Engineer knocked back. 03701_ U-05 Engineer system terminally corrupted. 03704_ System corrupted: Matter fused (-9). 03705_ as-74551 destroyed. 03705_ Switching to secondary target: as-00842. 03706_ Acquired 11 matter. Map ----- +----------------------------------------------------+ | ??##### %#### ####???????????????????## | | ?## # # %# ## ##?????????????????## | | ## # %*##### ##???????????????## #### | | # %!%! ####?????????#### #??# # | | # #%# """ ##????????# #??# # | | ## # ### """ #????????# #??# # | | # # # """ ##????????## ##### # | | # # ### # ##??????????## ## | | ### #### ###### ###????????????### ### #### | | # #??# # ##????????????????# ### #??? | | ## ###### # ##????????????????# #??? | | ### #??# # ## ###??????????????##### #??? | | ??# #??# ### ### ##??????????######## ##?? | | ??# #??# ### #?## #??????????# #?? | | ?## ##?# #??## #??????????# """ ### | | ## ### ## ##??# ##??????????# """ | | # ## ## ##?## ##???????????# """ ## | | %% ## ###### #????????????# % ## | | ###### ##?# #????????????# % ## | | ##???## #?# #????????????##### ####### | | #????## #?# ####?????????????# ####### | | ## #????# !##?# #?????????????# | | #### #???# *%#??#### #?????????????# ######## | | ???# #???## !!##????# #?????????????# #??????# | | ???## ##????# =###### #???????####### #?????## | | ????#####?????# *=%*!* @#???????# #?????# | | ??????????????# % #####%#???????# #######?????# | | #####????????## #???#a#???##### #??????###### | | ##??????## #???#%##### #?????## ## | | #??????# ##???# ##????# | | #??????# #????###### ###### < | | ##??????## ##?????????## # | | ##????????# ##???????????### ######### | | ##?????????## ##?????????????# #???????## | | ###???????????# #?????????????# ####?????## | | ??????????????# #?????????????# #?????## | | ??????????????# #????????????# = #?????# | | ??????????????## #??????########## ####### | | ???????????????#####??????# ## | | ??????????????????????????# ##### | | ??????????????????????????# """ """ """ """ #???## | | ???????????????????######## """ """ """ """ #????# | | #################??# """ """ """ """ #????# | | ! #### #????# | | ############ ##### """ """ """ """ #????# | | ?????## #???# """ """ """ """ #????? | | ?????# #####???# """ """ """ """ #????? | | ?????## ##???????# #????? | | ??????##### ##????????# """ """ """ """ #????? | | ??????????## ##?????????# """ """ """ """??????? | +----------------------------------------------------+ Best States ------------- Heat Dissipation 25 Energy Generation 10 Energy Capacity 250 Matter Stores 300 Matter Capacity 300 Sight Range 16 Terrain Scan Density 10 Evasion (%) 42 Recoil Reduction 2 Item Schematics ----------------- Hcp. Storage Unit | -10/Materials | Hacked Robot Schematics ------------------ None Fabricated ------------ Nothing Alien Tech Used ----------------- None Achievements -------------- None Challenges ------------ None Game ------ Seed TargetingTitaniumLog Manual? 0 Play Time 00:20:51 Cumulative 90.1 hours Start 2020.10.29 @ 03:44:49 End 2020.10.29 @ 04:02:40 Sessions 1 Manual Loads 0 Difficulty Rogue Special Mode None Game No. 75 Rogue 75 Adventurer 0 Explorer 0 Win Type - Total 2 Types 2/0/0/0/0/0/0/0/0 Lore% 40 Gallery% 52 Achievement% 40 Wizard Run 0 Options --------- ASCII 1 Keyboard 1 Movement Arrows Keybinds 0 Fullscreen 1 Font 24/Proggy Map View 76x50 Tactical HUD 1 Map Filters NONE Filters NONE Steam 1 RUN: 17fee010-d23a-4ac3-8a33-4d2e39647434